bitfinex-derivatives/quotes_BTCF0:USTF0_20241223
["timestamp","ask_amount","ask_price","bid_price","bid_amount"]
[1734965171506,0.6608,94204.0,94160.0,0.20003615]
[1734965171696,0.3608,94187.0,94160.0,0.20003615]
[1734965171897,0.05325299,94186.0,94166.0,0.053158]
[1734965172101,0.00010599,94186.0,94160.0,0.20003615]
[1734965172301,0.00010599,94186.0,94173.0,0.053154]
[1734965172509,0.00010599,94186.0,94174.0,0.3608]
[1734965172702,0.00010599,94186.0,94184.0,0.053148]
[1734965173109,0.00110599,94186.0,94184.0,0.053148]
[1734965173309,0.00110599,94186.0,94177.0,0.3608]
[1734965173509,0.00110599,94186.0,94166.0,0.005]
[1734965173510,0.053155,94172.0,94166.0,0.005]
[1734965173820,0.3608,94167.0,94146.0,0.3608]
[1734965174003,0.3608,94157.0,94146.0,0.3608]
[1734965174404,0.3608,94157.0,94155.0,0.00137302]
[1734965174909,0.36144,94167.0,94156.0,0.3608]
[1734965175104,0.3608,94167.0,94156.0,0.3608]
[1734965175305,0.3608,94167.0,94155.0,0.00137302]
[1734965175611,0.3608,94167.0,94161.0,0.00137302]
[1734965175800,0.3608,94167.0,94166.0,0.002]
[1734965176000,0.3608,94167.0,94135.0,0.3608]
[1734965176196,0.3608,94167.0,94150.0,0.053167]
[1734965176607,0.3608,94167.0,94155.0,0.004]
[1734965176813,0.3608,94167.0,94165.0,0.053159]
[1734965177130,0.3608,94167.0,94155.0,0.004]
[1734965177303,0.053159,94166.0,94155.0,0.004]
[1734965177499,0.3608,94167.0,94155.0,0.004]
[1734965177707,0.3608,94167.0,94155.0,0.057164]
[1734965177902,0.3608,94167.0,94145.0,0.05317]
[1734965178107,0.3608,94167.0,94140.0,0.20003615]
[1734965178301,0.3608,94157.0,94149.0,0.053167]
[1734965178505,0.3608,94157.0,94153.0,0.053165]
[1734965178704,0.3608,94157.0,94154.0,0.053165]
[1734965178903,0.3608,94157.0,94148.0,0.053168]
[1734965179113,0.36244,94167.0,94151.0,0.053166]
[1734965179315,0.001,94167.0,94158.0,0.3608]
[1734965179517,0.001,94167.0,94166.0,0.053158]
[1734965179705,0.301,94167.0,94141.0,0.27118686]
[1734965180027,0.301,94167.0,94128.0,0.3608]
[1734965180028,0.053162,94159.0,94128.0,0.3608]
[1734965180216,0.001,94157.0,94128.0,0.3608]
[1734965180399,0.001,94157.0,94144.0,0.053171]
[1734965180604,0.053165,94156.0,94135.0,0.053175]
[1734965180818,0.001,94157.0,94128.0,0.3608]
[1734965181005,0.3608,94152.0,94128.0,0.3608]
[1734965181203,0.3608,94152.0,94130.0,0.20003615]
[1734965181417,0.053169,94148.0,94132.0,0.05326587]
[1734965181617,0.36136001,94152.0,94132.0,8.887e-05]
[1734965181913,0.3608,94152.0,94140.0,0.053173]
[1734965182314,0.3608,94144.0,94132.0,8.887e-05]
[1734965182818,0.3608,94134.0,94132.0,8.887e-05]
[1734965183217,0.3608,94133.0,94132.0,8.887e-05]
[1734965183514,0.413977,94133.0,94132.0,8.887e-05]
[1734965183718,0.4141148,94133.0,94132.0,8.887e-05]
[1734965185513,0.4141148,94133.0,94115.0,0.00159363]
[1734965185514,0.053181,94125.0,94115.0,0.00159363]
[1734965185713,0.36088331,94125.0,94115.0,0.00159363]
[1734965185918,0.36088331,94125.0,94118.0,0.053185]
[1734965186103,0.36088331,94125.0,94123.0,0.053182]
[1734965186332,8.331e-05,94125.0,94123.0,0.053182]
[1734965186509,0.00159462,94152.0,94151.0,0.053167]
[1734965186703,0.00159462,94152.0,94140.0,0.20003615]
[1734965186906,0.053169,94148.0,94134.0,0.413976]
[1734965187113,0.00159462,94152.0,94139.0,0.053173]
[1734965187405,0.3608,94147.0,94129.0,0.053179]
[1734965187805,0.053174,94139.0,94124.0,0.053182]
[1734965188005,0.00012593,94138.0,94120.0,0.20003615]
[1734965188211,0.00012593,94138.0,94132.0,0.053177]
[1734965188410,0.00012593,94138.0,94124.0,0.053182]
[1734965188922,0.00012593,94138.0,94130.0,0.053179]
[1734965189114,0.00012593,94138.0,94120.0,0.20003615]
[1734965189317,0.00012593,94138.0,94129.0,0.053179]
[1734965189512,0.00012593,94138.0,94136.0,0.413975]
[1734965189718,0.3608,94177.0,94136.0,0.6608]
[1734965190015,0.3608,94177.0,94167.0,0.20003615]
[1734965190207,0.3608,94177.0,94175.0,0.053153]
[1734965190405,0.3608,94177.0,94161.0,0.3608]
[1734965190816,0.053154,94174.0,94161.0,0.413961]
[1734965191123,0.3608,94177.0,94161.0,0.413961]
[1734965191124,0.36144,94177.0,94173.0,0.053154]
[1734965191317,0.00064,94177.0,94176.0,0.053153]
[1734965191637,0.3608,94185.0,94169.0,0.339951]
[1734965191921,0.3608,94185.0,94178.0,0.413951]
[1734965192107,0.3608,94185.0,94146.0,0.01097728]
[1734965192108,0.3608,94185.0,94168.0,0.3608]
[1734965192311,0.6608,94185.0,94168.0,0.3608]
[1734965192515,0.3608,94185.0,94178.0,0.053152]
[1734965192713,0.3608,94185.0,94184.0,0.053148]
[1734965192915,0.3608,94194.0,94179.0,0.3608]
[1734965193311,0.3608,94194.0,94179.0,0.413951]
[1734965193512,0.053145,94190.0,94179.0,0.413951]
[1734965193712,0.3608,94194.0,94186.0,0.053147]
[1734965193713,0.36136001,94194.0,94186.0,0.053147]
[1734965194013,0.3608,94194.0,94191.0,0.053144]
[1734965194420,0.09330031,94200.0,94195.0,0.053142]
[1734965194627,0.09330031,94200.0,94198.0,0.05314]
[1734965194821,0.00159351,94202.0,94198.0,0.05314]
[1734965195217,0.00159351,94202.0,94201.0,0.053139]
[1734965195721,0.00159351,94202.0,94184.0,0.20003615]
[1734965195722,0.05314,94199.0,94186.0,0.413947]
[1734965195921,0.006,94200.0,94186.0,0.3608]
[1734965196217,0.3608,94191.0,94184.0,0.20003615]
[1734965197126,0.413944,94191.0,94184.0,0.20003615]
[1734965197522,0.09330031,94200.0,94193.0,0.053143]
[1734965197725,0.09330031,94200.0,94198.0,0.05314]
[1734965197913,0.09330031,94200.0,94190.0,0.3608]
[1734965198115,0.09330031,94200.0,94184.0,0.20003615]
[1734965198116,0.413942,94195.0,94184.0,0.20003615]
[1734965198319,0.053143,94193.0,94184.0,0.20003615]
[1734965198525,0.36140001,94195.0,94184.0,0.25318415]
[1734965198731,0.3608,94195.0,94184.0,0.20003615]
[1734965199026,0.09330031,94200.0,94190.0,0.3608]
[1734965199227,0.004,94200.0,94198.0,0.05314]
[1734965200217,0.004,94200.0,94199.0,0.3608]
[1734965200433,0.004,94200.0,94199.0,0.2930783]
[1734965200623,0.00159351,94202.0,94199.0,0.2930783]
[1734965200825,0.053142,94195.0,94185.0,0.053147]
[1734965201123,0.053146,94188.0,94176.0,0.053152]
[1734965201320,0.3608,94191.0,94178.0,0.053151]
[1734965201524,0.3608,94182.0,94157.0,0.3608]
[1734965201720,0.05315,94181.0,94166.0,0.053158]
[1734965201924,0.05315,94181.0,94160.0,0.20003615]
[1734965202120,0.053151,94180.0,94170.0,0.053156]
[1734965202315,0.36136001,94182.0,94173.0,0.053154]
[1734965202520,0.3608,94182.0,94160.0,0.20003615]
[1734965202726,0.3608,94182.0,94160.0,0.053162]
[1734965202727,0.3608,94173.0,94160.0,0.053162]
[1734965202916,0.05316,94164.0,94141.0,0.00084]
[1734965203123,0.05316,94164.0,94147.0,0.053169]
[1734965203621,0.05316,94164.0,94148.0,0.053168]
[1734965203832,0.05316,94164.0,94152.0,0.053166]
[1734965204324,0.5166341,94165.0,94151.0,0.053167]
[1734965204525,0.005,94164.0,94150.0,0.20003615]
[1734965204721,0.005,94164.0,94140.0,0.20003615]
[1734965204925,0.005,94164.0,94147.0,0.3608]
[1734965205116,0.005,94164.0,94150.0,0.20003615]
[1734965205320,0.005,94164.0,94162.0,0.05316]
[1734965206129,0.00056001,94183.0,94170.0,0.053156]
[1734965206432,0.09330103,94165.0,94150.0,0.20003615]
[1734965206731,0.09330103,94165.0,94154.0,0.3608]
[1734965206932,0.09330103,94165.0,94164.0,0.053159]
[1734965207238,0.09530103,94165.0,94164.0,0.053159]
[1734965207932,0.45710103,94165.0,94158.0,0.053163]
[1734965208128,0.45710103,94165.0,94154.0,0.3608]
[1734965208129,0.45710103,94165.0,94150.0,0.20003615]
[1734965208435,0.45410103,94165.0,94150.0,0.20003615]
[1734965208733,0.45510103,94165.0,94160.0,0.053161]
[1734965209121,0.3618,94165.0,94162.0,0.05316]
[1734965209336,0.3618,94165.0,94142.0,0.3608]
[1734965209835,0.413964,94157.0,94149.0,0.053168]
[1734965210137,0.413964,94157.0,94150.0,0.053167]
[1734965210432,0.3608,94157.0,94150.0,0.001]
[1734965210937,0.053167,94151.0,94150.0,0.001]
[1734965211132,0.053169,94147.0,94122.0,0.5009]
[1734965211337,0.3608,94138.0,94123.0,0.05327734]
[1734965211531,0.66136001,94151.0,94123.0,0.05327734]
[1734965211532,0.3608,94128.0,94123.0,9.534e-05]
[1734965212334,0.053181,94125.0,94123.0,9.534e-05]
[1734965212521,0.36136001,94128.0,94123.0,9.534e-05]
[1734965212728,0.3608,94128.0,94126.0,0.053181]
[1734965212920,0.3608,94128.0,94123.0,9.534e-05]
[1734965213439,0.3608,94128.0,94124.0,0.053182]
[1734965213735,0.3608,94128.0,94123.0,0.00309534]
[1734965213937,0.053182,94124.0,94123.0,0.003]
[1734965214125,0.36136001,94128.0,94123.0,0.003]
[1734965214326,0.3638,94128.0,94120.0,0.053184]
[1734965214522,0.3638,94128.0,94121.0,0.053184]
[1734965214728,0.48820137,94128.0,94110.0,0.56083615]
[1734965214927,0.48820137,94128.0,94120.0,0.053184]
[1734965215128,0.003,94124.0,94120.0,0.053184]
[1734965215330,0.003,94124.0,94110.0,0.20003615]
[1734965215530,0.003,94124.0,94115.0,0.053187]
[1734965215731,0.3608,94120.0,94107.0,0.053191]
[1734965215928,0.3608,94120.0,94102.0,0.3608]
[1734965216131,0.053188,94113.0,94102.0,0.413994]
[1734965216337,0.053188,94113.0,94104.0,0.053193]
[1734965216533,0.36136001,94120.0,94109.0,0.05319]
[1734965216732,0.3608,94120.0,94114.0,0.053188]
[1734965217036,0.3608,94120.0,94110.0,0.003]
[1734965217234,0.413989,94111.0,94110.0,0.003]
[1734965217443,0.413989,94111.0,94104.0,0.002]
[1734965217631,0.413989,94111.0,94100.0,0.1]
[1734965217632,0.3608,94109.0,94100.0,0.1]
[1734965217836,0.3608,94101.0,94080.0,0.20003615]
[1734965218038,0.3608,94101.0,94081.0,0.3608]
[1734965218231,0.3608,94101.0,94080.0,0.20003615]
[1734965218232,0.36136001,94109.0,94072.0,0.3608]
[1734965218430,0.3608,94100.0,94072.0,0.3608]
[1734965218639,0.3608,94100.0,94093.0,0.053199]
[1734965218845,0.36136001,94109.0,94081.0,0.3608]
[1734965218846,0.36136001,94109.0,94107.0,0.053191]
[1734965219033,0.3608,94109.0,94091.0,0.0532]
[1734965219234,0.3608,94109.0,94107.0,0.053191]
[1734965219434,0.002,94120.0,94108.0,0.053191]
[1734965219635,0.002,94120.0,94090.0,0.3618]
[1734965219636,0.3608,94113.0,94090.0,0.3618]
[1734965219941,0.05319,94110.0,94093.0,0.0532]
[1734965220142,0.36136001,94113.0,94097.0,0.053197]
[1734965220333,0.3608,94113.0,94082.0,0.1336]
[1734965220541,0.3608,94113.0,94093.0,0.053199]
[1734965220732,0.3608,94113.0,94100.0,0.053195]
[1734965221037,0.3608,94104.0,94100.0,0.053195]
[1734965221258,0.001,94110.0,94109.0,0.053191]
[1734965221428,0.001,94110.0,94096.0,0.3608]
[1734965221628,0.001,94110.0,94106.0,0.3608]
[1734965221836,0.36144,94117.0,94116.0,0.053187]
[1734965221837,0.00064,94117.0,94116.0,0.053187]
[1734965222141,0.09317111,94120.0,94116.0,0.3608]
[1734965222448,0.3608,94126.0,94121.0,0.053184]
[1734965222844,0.3608,94126.0,94123.0,0.053182]
[1734965223036,0.3608,94126.0,94124.0,0.053182]
[1734965223833,0.3629546,94136.0,94118.0,0.3608]
[1734965223834,0.0021546,94136.0,94118.0,0.3608]
[1734965224137,0.0021546,94136.0,94135.0,0.413976]
[1734965224138,0.00159459,94136.0,94135.0,0.413976]
[1734965224344,0.00159459,94136.0,94135.0,0.053176]
[1734965224847,0.00159459,94136.0,94130.0,0.053178]
[1734965225052,0.00159459,94136.0,94131.0,0.053178]
[1734965225246,0.00159459,94136.0,94123.0,0.3608]
[1734965225443,0.00159459,94136.0,94134.0,0.053176]
[1734965226033,0.09317111,94160.0,94132.0,0.3608]
[1734965226241,0.09317111,94160.0,94147.0,0.053169]
[1734965226443,0.09317111,94160.0,94132.0,0.3608]
[1734965226840,0.3608,94172.0,94132.0,0.3608]
[1734965226841,0.3608,94150.0,94132.0,0.3608]
[1734965227143,0.3608,94150.0,94135.0,0.002]
[1734965227749,0.3608,94150.0,94146.0,0.053169]
[1734965228144,0.3608,94150.0,94149.0,0.053168]
[1734965228346,0.36136001,94159.0,94158.0,0.053163]
[1734965228347,0.00156001,94159.0,94158.0,0.053163]
[1734965228551,0.001,94159.0,94158.0,0.053163]
[1734965228753,0.12422815,94169.0,94158.0,0.42062444]
[1734965229050,0.12422815,94169.0,94168.0,0.413957]
[1734965229550,0.053145,94191.0,94178.0,0.053151]
[1734965229941,0.17736815,94199.0,94168.0,0.3608]
[1734965230142,0.053142,94196.0,94179.0,0.053151]
[1734965230543,0.12422815,94199.0,94185.0,0.053147]
[1734965230849,0.12422815,94199.0,94168.0,0.3608]
[1734965230850,0.3608,94186.0,94168.0,0.3608]
[1734965231146,0.7216,94176.0,94153.0,0.18980027]
[1734965231355,0.053165,94155.0,94153.0,0.18980027]
[1734965231542,0.36136001,94158.0,94153.0,0.18980027]
[1734965231853,0.3608,94158.0,94153.0,0.11580027]
[1734965232054,0.053165,94154.0,94153.0,0.11580027]
[1734965232349,0.053165,94154.0,94129.0,0.00159328]
[1734965232645,0.36136001,94158.0,94138.0,0.053174]
[1734965232646,0.3608,94145.0,94138.0,0.053174]
[1734965232848,0.3608,94145.0,94130.0,0.053178]
[1734965233051,0.3608,94145.0,94129.0,0.00159328]
[1734965233346,0.3608,94137.0,94129.0,0.00159328]
[1734965233743,0.3608,94136.0,94129.0,0.00159328]
[1734965233942,0.3608,94136.0,94135.0,0.053176]
[1734965234741,0.3608,94150.0,94129.0,0.00159328]
[1734965234945,0.3608,94150.0,94149.0,0.053168]
[1734965235247,0.12422815,94155.0,94140.0,0.56083615]
[1734965235248,0.12422815,94155.0,94148.0,0.3608]
[1734965235462,0.12422815,94155.0,94154.0,0.053165]
[1734965235646,0.12422815,94155.0,94140.0,0.3608]
[1734965235952,0.12422815,94155.0,94148.0,0.053168]
[1734965236154,0.3608,94158.0,94140.0,0.3608]
[1734965236342,0.3608,94150.0,94140.0,0.413972]
[1734965236751,0.3608,94150.0,94143.0,0.053171]
[1734965237756,0.3608,94150.0,94137.0,0.01596]
[1734965237945,0.3608,94150.0,94146.0,0.053169]
[1734965238147,0.3608,94150.0,94148.0,0.053168]
[1734965238350,0.3608,94158.0,94141.0,0.3608]
[1734965238557,0.002,94150.0,94149.0,0.053168]
[1734965238852,0.12422815,94164.0,94149.0,0.413968]
[1734965239052,0.12422815,94164.0,94160.0,0.053162]
[1734965239757,0.36136001,94170.0,94160.0,0.053162]
[1734965239957,0.3608,94170.0,94160.0,0.053162]
[1734965240150,0.3608,94170.0,94159.0,0.3608]
[1734965240353,0.3608,94160.0,94149.0,0.001]
[1734965240550,0.3608,94160.0,94153.0,0.053165]
[1734965240753,0.3608,94159.0,94148.0,0.20003615]
[1734965241256,0.3608,94149.0,94133.0,0.00096]
[1734965241447,0.3608,94136.0,94132.0,0.25279899]
[1734965241644,0.3608,94136.0,94134.0,0.053176]
[1734965241955,0.053177,94134.0,94132.0,0.25279899]
[1734965242257,0.3608,94136.0,94129.0,0.00159328]
[1734965242258,0.00060001,94136.0,94129.0,0.00159328]
[1734965242460,0.053172,94142.0,94129.0,0.05477228]
[1734965242661,0.053173,94141.0,94129.0,0.05477228]
[1734965243145,0.053173,94141.0,94129.0,0.00159328]
[1734965243379,0.00056001,94144.0,94142.0,0.053171]
[1734965243551,0.36136001,94152.0,94134.0,0.3608]
[1734965243856,0.12422815,94150.0,94149.0,0.053168]
[1734965244287,0.1556586,94157.0,94156.0,0.053164]
[1734965244462,0.3608,94212.0,94193.0,0.053143]
[1734965244656,0.36144,94202.0,94193.0,0.053143]
[1734965244844,0.36144,94202.0,94185.0,0.053147]
[1734965245154,0.36144,94202.0,94174.0,0.3608]
[1734965245155,0.3608,94193.0,94174.0,0.3608]
[1734965245658,0.3608,94185.0,94160.0,0.20115615]
[1734965245864,0.3608,94167.0,94152.0,0.053166]
[1734965246054,0.3608,94167.0,94151.0,0.3608]
[1734965246262,0.053167,94150.0,94149.0,0.002]
[1734965246562,0.413967,94150.0,94149.0,0.002]
[1734965246753,0.05317,94146.0,94145.0,0.31633378]
[1734965247260,0.053174,94139.0,94138.0,0.38072054]
[1734965247445,0.053184,94121.0,94108.0,0.053191]
[1734965247649,0.3608,94120.0,94100.0,0.20003615]
[1734965248153,0.3608,94120.0,94106.0,0.25385834]
[1734965248954,0.00064,94123.0,94121.0,0.053183]
[1734965249156,0.053184,94121.0,94115.0,0.053187]
[1734965249379,0.3608,94120.0,94108.0,0.053191]
[1734965249560,0.3608,94120.0,94118.0,0.053185]
[1734965249759,0.05374001,94128.0,94100.0,0.20003615]
[1734965250062,0.00056001,94130.0,94110.0,0.20003615]
[1734965250355,0.053177,94133.0,94110.0,0.20003615]
[1734965250544,0.003,94120.0,94119.0,0.05327335]
[1734965251150,0.053173,94140.0,94119.0,8.835e-05]
[1734965251353,0.053173,94140.0,94130.0,0.053179]
[1734965252161,0.053177,94134.0,94125.0,0.053181]
[1734965252357,0.3608,94130.0,94119.0,8.835e-05]
[1734965253259,0.053179,94129.0,94119.0,8.835e-05]
[1734965253451,0.053183,94123.0,94119.0,8.835e-05]
[1734965253653,0.3608,94120.0,94119.0,8.835e-05]
[1734965256263,0.003,94129.0,94125.0,0.053181]
[1734965256458,0.003,94129.0,94119.0,8.835e-05]
[1734965256765,0.416984,94120.0,94119.0,8.835e-05]
[1734965257463,0.413984,94120.0,94119.0,8.835e-05]
[1734965258260,0.416984,94120.0,94076.0,0.30706734]
[1734965258465,0.3608,94089.0,94087.0,0.053203]
[1734965258651,0.3608,94089.0,94076.0,0.25385834]
[1734965258850,0.053203,94088.0,94081.0,0.053206]
[1734965259051,0.053203,94088.0,94076.0,0.25385834]
[1734965259362,0.36140001,94089.0,94087.0,0.053203]
[1734965259554,8.749e-05,94088.0,94087.0,0.053203]
[1734965260159,8.749e-05,94088.0,94086.0,0.053203]
[1734965260854,8.749e-05,94088.0,94080.0,0.053207]
[1734965261055,8.749e-05,94088.0,94060.0,0.00112]
[1734965261056,0.3608,94081.0,94060.0,0.00112]
[1734965261256,0.414018,94061.0,94053.0,0.053222]
[1734965261657,0.053219,94060.0,94051.0,0.25385834]
[1734965261855,0.3608,94052.0,94051.0,0.30708134]
[1734965262060,0.3608,94052.0,94051.0,0.25385834]
[1734965262369,0.360888,94052.0,94051.0,0.25385834]
[1734965262761,0.360888,94052.0,94049.0,0.186324]
[1734965263064,0.00056001,94061.0,94060.0,0.053218]
[1734965263262,0.3608,94068.0,94049.0,0.1331]
[1734965263469,0.053215,94067.0,94053.0,0.001]
[1734965263667,0.053215,94067.0,94056.0,0.05322]
[1734965263882,0.3608,94057.0,94053.0,0.001]
[1734965264265,0.3608,94057.0,94052.0,0.053223]
[1734965264456,0.3608,94057.0,94055.0,0.053221]
[1734965264960,0.002,94057.0,94049.0,0.1331]
[1734965265368,0.3628,94057.0,94051.0,0.053223]
[1734965265564,0.3628,94057.0,94049.0,0.1331]
[1734965265762,0.3628,94057.0,94055.0,0.053221]
[1734965266363,0.002,94057.0,94055.0,0.053221]
[1734965266872,0.002,94057.0,94049.0,0.1331]
[1734965267068,0.002,94057.0,94053.0,0.053222]
[1734965267271,0.3608,94068.0,94057.0,0.05322]
[1734965267469,0.3608,94060.0,94051.0,0.053223]
[1734965267774,0.3608,94060.0,94059.0,0.053219]
[1734965267968,0.3608,94068.0,94063.0,0.053216]
[1734965268274,0.002,94057.0,94056.0,0.05322]
[1734965268566,0.002,94057.0,94049.0,0.1331]
[1734965268772,0.3608,94068.0,94054.0,0.3608]
[1734965268964,0.3608,94078.0,94071.0,0.053212]
[1734965269167,0.3608,94078.0,94073.0,0.053211]
[1734965269474,0.3608,94078.0,94074.0,0.05321]
[1734965269662,0.3608,94078.0,94076.0,0.053209]
[1734965270060,0.00064,94091.0,94073.0,0.3608]
[1734965270268,0.1303875,94130.0,94087.0,0.7216]
[1734965270269,0.3608,94118.0,94087.0,0.7216]
[1734965270466,0.002,94078.0,94050.0,0.20084273]
[1734965270660,0.3608,94074.0,94060.0,0.20084273]
[1734965270861,0.002,94078.0,94050.0,0.20084273]
[1734965271066,0.3608,94075.0,94068.0,0.053213]
[1734965271583,0.3608,94075.0,94062.0,0.053217]
[1734965271875,0.053218,94061.0,94060.0,0.00116]
[1734965272078,0.053218,94060.0,94048.0,0.05331038]
[1734965272466,0.36136001,94066.0,94050.0,0.20084273]
[1734965272666,0.3608,94066.0,94064.0,0.053216]
[1734965273159,0.00056001,94075.0,94051.0,0.1352]
[1734965273364,0.00064,94076.0,94075.0,0.05321]
[1734965273565,0.36136001,94087.0,94060.0,0.20084273]
[1734965273766,0.3608,94087.0,94060.0,0.20084273]
[1734965273962,0.053199,94094.0,94069.0,0.053213]
[1734965274173,0.0532,94093.0,94079.0,0.053207]
[1734965274573,0.053206,94081.0,94072.0,0.053211]
[1734965274873,0.36136001,94084.0,94066.0,0.3608]
[1734965275062,0.053212,94072.0,94059.0,0.053219]
[1734965275377,0.36136001,94074.0,94060.0,0.20084273]
[1734965275581,0.3608,94074.0,94060.0,0.20084273]
[1734965276078,0.3608,94075.0,94071.0,0.053212]
[1734965276274,0.36136001,94085.0,94075.0,0.053209]
[1734965276578,0.3608,94085.0,94075.0,0.053209]
[1734965276771,0.3608,94085.0,94060.0,0.20484273]
[1734965276772,0.3608,94085.0,94070.0,0.56164273]
[1734965276976,0.36136001,94096.0,94077.0,0.053208]
[1734965276977,0.3608,94084.0,94077.0,0.053208]
[1734965277177,0.3608,94084.0,94071.0,0.003]
[1734965277378,0.3608,94084.0,94071.0,0.056212]
[1734965277674,0.3608,94084.0,94072.0,0.053211]
[1734965277876,0.053204,94086.0,94072.0,0.053211]
[1734965278073,0.36136001,94096.0,94071.0,0.003]
[1734965278074,0.3608,94096.0,94071.0,0.003]
[1734965278377,0.15496663,94107.0,94105.0,0.053192]
[1734965279176,0.3608,94106.0,94097.0,0.25403973]
[1734965279370,0.15496663,94107.0,94097.0,0.20084273]
[1734965279575,0.15696663,94107.0,94102.0,0.053194]
[1734965279775,0.002,94107.0,94102.0,0.053194]
[1734965280176,0.002,94107.0,94105.0,0.053192]
[1734965280375,0.00159501,94121.0,94111.0,0.053189]
[1734965280775,0.3608,94114.0,94100.0,0.56164273]
[1734965281081,0.3608,94103.0,94090.0,0.56164273]
[1734965281271,0.3608,94103.0,94074.0,0.05321]
[1734965281272,0.053203,94088.0,94074.0,0.05321]
[1734965281470,0.3608,94085.0,94078.0,0.20084273]
[1734965281677,0.3608,94085.0,94080.0,0.053207]
[1734965281871,0.3608,94085.0,94078.0,0.20084273]
[1734965282189,0.3608,94084.0,94078.0,0.20084273]
[1734965282378,0.053206,94082.0,94078.0,0.20084273]
[1734965282578,0.053207,94079.0,94078.0,0.20084273]
[1734965282776,0.66136001,94084.0,94050.0,0.20084273]
[1734965283078,0.3608,94059.0,94057.0,0.05322]
[1734965284010,0.3608,94059.0,94049.0,0.1496]
[1734965284284,0.3628,94059.0,94049.0,0.1496]
[1734965284683,0.3628,94059.0,94055.0,0.053221]
[1734965284985,0.002,94059.0,94055.0,0.053221]
[1734965285172,0.002,94059.0,94057.0,0.05322]
[1734965285878,0.3608,94069.0,94061.0,0.053217]
[1734965286084,0.3608,94069.0,94065.0,0.053215]
[1734965286679,0.3608,94069.0,94059.0,0.20084273]
[1734965287279,0.3608,94069.0,94062.0,0.053217]
[1734965288284,0.3608,94069.0,94054.0,0.3608]
[1734965288470,0.414013,94069.0,94050.0,0.20084273]
[1734965288670,0.3608,94069.0,94064.0,0.053216]
[1734965289173,0.3608,94069.0,94056.0,0.05322]
[1734965289374,0.3608,94069.0,94057.0,0.05322]
[1734965289582,0.3628,94069.0,94058.0,0.053219]
[1734965289880,0.3628,94069.0,94050.0,0.20084273]
[1734965290189,0.3628,94069.0,94051.0,0.3608]
[1734965290374,0.3608,94069.0,94051.0,0.3608]
[1734965290578,0.3608,94061.0,94055.0,0.053221]
[1734965290781,0.3608,94061.0,94059.0,0.053218]
[1734965290975,0.3608,94061.0,94051.0,0.3608]
[1734965291176,0.3608,94061.0,94048.0,8.538e-05]
[1734965291177,0.053224,94050.0,94048.0,8.538e-05]
[1734965291672,0.053234,94033.0,94032.0,0.25385834]
[1734965291984,0.774834,94033.0,94032.0,0.25385834]
[1734965292179,0.7216,94033.0,94022.0,0.01315053]
[1734965292683,8.538e-05,94032.0,94031.0,0.053234]
[1734965293082,8.538e-05,94032.0,94031.0,0.00145542]
[1734965296288,8.538e-05,94032.0,94023.0,0.1445]
[1734965296486,8.538e-05,94032.0,94030.0,0.053235]
[1734965296886,0.15496663,94056.0,94031.0,0.3608]
[1734965297088,0.15496663,94056.0,94046.0,0.13049885]
[1734965297284,0.15496663,94056.0,94052.0,0.053223]
[1734965297480,0.3608,94053.0,94030.0,0.13049885]
[1734965297683,0.15496663,94056.0,94031.0,0.053234]
[1734965297684,0.3608,94033.0,94031.0,0.053234]
[1734965297879,0.3608,94033.0,94031.0,0.057234]
[1734965298081,0.3608,94033.0,94031.0,0.004]
[1734965298578,0.414034,94033.0,94031.0,0.004]
[1734965298778,0.3608,94033.0,94031.0,0.004]
[1734965299488,0.414034,94033.0,94031.0,0.004]
[1734965299685,0.053239,94023.0,94010.0,0.13049885]
[1734965299892,0.3608,94023.0,94021.0,0.05324]
[1734965300287,0.36136001,94033.0,94030.0,0.005]
[1734965300483,0.053234,94032.0,94030.0,0.005]
[1734965301089,0.055239,94023.0,94011.0,0.053246]
[1734965301290,0.416039,94023.0,94004.0,0.3608]
[1734965301490,0.3628,94023.0,94021.0,0.05324]
[1734965301792,0.002,94023.0,94021.0,0.05324]
[1734965302289,0.416039,94023.0,94008.0,0.00159536]
[1734965302592,0.3628,94023.0,94021.0,0.05324]
[1734965302781,0.3608,94023.0,94021.0,0.05324]
[1734965303492,0.54644576,94057.0,94037.0,0.053231]
[1734965303690,0.54704577,94057.0,94042.0,0.3608]
[1734965303883,0.54704577,94057.0,94022.0,0.94268614]
[1734965303884,0.053228,94042.0,94036.0,0.053232]
[1734965304083,0.3608,94043.0,94030.0,0.053235]
[1734965304291,0.3608,94043.0,94023.0,0.135]
[1734965304292,0.3608,94035.0,94023.0,0.135]
[1734965304488,0.3608,94035.0,94027.0,0.053237]
[1734965304686,0.3608,94033.0,94027.0,0.053237]
[1734965305086,0.3608,94033.0,94022.0,0.01315053]
[1734965305087,0.053238,94026.0,94022.0,0.01315053]
[1734965305288,0.3608,94023.0,94022.0,0.01315053]
[1734965305988,0.3608,94033.0,94022.0,0.01315053]
[1734965306185,0.3608,94045.0,94023.0,0.001]
[1734965306385,0.3608,94033.0,94023.0,0.001]
[1734965306587,0.3608,94025.0,94023.0,0.001]
[1734965306783,0.414034,94033.0,94023.0,0.054239]
[1734965306984,0.414034,94033.0,94024.0,0.053238]
[1734965307189,0.3608,94033.0,94028.0,0.053236]
[1734965307387,0.3608,94044.0,94028.0,0.053236]
[1734965307697,0.053232,94035.0,94028.0,0.053236]
[1734965307916,0.053233,94034.0,94022.0,0.06638953]
[1734965308091,0.3608,94036.0,94022.0,0.06638953]
[1734965308291,0.053235,94030.0,94022.0,0.01315053]
[1734965308515,0.3608,94036.0,94022.0,0.01315053]
[1734965308797,0.053232,94035.0,94022.0,0.01315053]
[1734965308988,0.3608,94036.0,94028.0,0.053236]
[1734965309197,0.3608,94036.0,94022.0,0.01315053]
[1734965309198,0.3608,94036.0,94023.0,0.053239]
[1734965309395,0.3608,94036.0,94022.0,0.01315053]